bitfinex/quotes_ETHUSD_20250722
["timestamp","ask_amount","ask_price","bid_price","bid_amount"]
[1753204976353,2.71394201,3684.7,3684.5,0.1352]
[1753204976673,2.71394503,3684.7,3684.5,0.1352]
[1753204976833,2.7139988,3684.6,3684.5,0.1352]
[1753204977377,0.1352,3685.1,3684.5,0.1352]
[1753204977579,0.002,3685.7,3684.6,0.57713998]
[1753204977746,2.71358243,3685.2,3685.0,0.6852]
[1753204977930,2.71363056,3685.1,3685.0,0.1352]
[1753204978263,2.7138294,3684.9,3684.8,4.527]
[1753204978446,2.71385149,3684.8,3684.7,4.6622]
[1753204978869,2.71380114,3684.9,3684.7,4.6622]
[1753204979031,2.71372778,3685.0,3684.7,4.6622]
[1753204979368,0.5977,3685.3,3684.8,0.55]
[1753204979369,0.1352,3685.3,3684.8,0.55]
[1753204979555,0.002,3685.4,3684.8,3.26384194]
[1753204979867,0.002,3685.4,3685.1,0.55]
[1753204980038,0.002,3685.4,3685.2,4.6592]
[1753204980370,2.71377785,3684.9,3684.8,4.523]
[1753204980569,2.71377785,3684.9,3684.1,2.7143431]
[1753204980570,2.71385149,3684.8,3683.8,0.8138]
[1753204980725,0.1352,3684.6,3684.0,0.1352]
[1753204980926,0.4625,3684.9,3683.9,4.524]
[1753204981127,2.7138567,3684.8,3684.0,0.0271444]
[1753204981364,0.1352,3685.0,3684.3,0.1352]
[1753204981770,0.002,3685.4,3684.4,5.33624146]
[1753204981940,0.002,3685.4,3685.0,0.55]
[1753204982136,0.002,3685.4,3685.3,0.6852]
[1753204982337,0.002,3685.4,3685.3,3.39868329]
[1753204982653,0.002,3685.4,3685.3,5.73715034]
[1753204983381,0.002,3685.4,3685.3,4.17878329]
[1753204983582,0.002,3685.4,3685.3,1.4653]
[1753204983787,0.002,3685.4,3685.3,5.9923]
[1753204984862,0.002,3685.4,3685.3,4.17878329]
[1753204985173,0.002,3685.4,3685.3,4.62818329]
[1753204985377,0.002,3685.4,3685.3,9.14818329]
[1753204985595,0.002,3685.4,3685.3,1.4653]
[1753204985796,0.002,3685.4,3685.3,4.6532]
[1753204986293,0.002,3685.4,3685.3,8.69620329]
[1753204986456,0.002,3685.4,3685.3,9.47470329]
[1753204989492,0.002,3685.4,3685.3,9.46870329]
[1753204991305,0.002,3685.7,3685.6,3.26326242]
[1753204991507,1e-08,3685.7,3685.6,7.79839504]
[1753204991800,0.002,3686.9,3686.8,3.26237929]
[1753204991950,0.002,3686.9,3686.8,8.55670308]
[1753204992150,0.002,3686.9,3686.8,8.52957929]
[1753204992397,0.002,3686.9,3686.8,5.06304954]
[1753204992564,0.002,3686.9,3686.8,4.51204954]
[1753204993392,0.002,3686.9,3686.8,5.06204954]
[1753204993577,0.002,3686.9,3686.8,8.28063378]
[1753204993758,0.002,3686.9,3686.8,0.55804954]
[1753204993958,0.002,3686.9,3686.8,4.51004954]
[1753204994166,0.002,3686.9,3686.8,4.51104954]
[1753204994665,2.71430573,3686.9,3686.8,4.51104954]
[1753204994871,0.002,3686.9,3686.8,4.503]
[1753204995079,0.002,3686.9,3686.8,5.053]
[1753204995268,0.002,3686.9,3686.8,5.0602145]
[1753204995696,0.002,3686.9,3686.8,7.77259379]
[1753204995907,0.002,3686.9,3686.8,5.0602145]
[1753204996280,0.002,3686.9,3686.8,7.93491758]
[1753204996619,0.002,3686.9,3686.8,7.90779379]
[1753204997124,0.002,3686.9,3686.8,5.1884145]
[1753204997585,0.002,3686.9,3686.8,7.90079379]
[1753204997780,0.002,3686.9,3686.8,7.89679379]
[1753204998516,0.002,3686.9,3686.8,0.6924145]
[1753204998689,0.002,3686.9,3686.8,5.1834145]
[1753204999297,0.002,3686.9,3686.8,8.84633524]
[1753205000141,0.002,3686.9,3686.8,9.60303524]
[1753205001051,0.002,3686.9,3686.8,11.23003524]
[1753205001235,1e-08,3686.9,3686.8,14.08103524]
[1753205001754,1e-08,3686.9,3686.8,9.59703524]
[1753205001920,1e-08,3686.9,3686.8,11.22403524]
[1753205002252,1e-08,3686.9,3686.8,9.59603524]
[1753205002946,1e-08,3686.9,3686.8,14.07403524]
[1753205003249,1e-08,3686.9,3686.8,11.22103524]
[1753205003906,1e-08,3686.9,3686.8,11.22003524]
[1753205004248,1e-08,3686.9,3686.8,4.16149379]
[1753205004452,1e-08,3686.9,3686.8,3.61149379]
[1753205004607,1e-08,3686.9,3686.8,8.41461758]
[1753205004807,1e-08,3686.9,3686.8,4.45849379]
[1753205005132,1e-08,3686.9,3686.8,4.02629379]
[1753205005336,1e-08,3686.9,3686.8,8.50629379]
[1753205005532,1e-08,3686.9,3686.8,7.20001144]
[1753205005733,1e-08,3686.9,3686.8,0.00763215]
[1753205005951,3.14210574,3686.9,3686.8,0.00763215]
[1753205006153,4.56886497,3686.9,3686.8,0.00763215]
[1753205006360,1.85655924,3686.9,3686.8,0.00763215]
[1753205006565,1.23740001,3686.9,3686.8,0.00763215]
[1753205006733,3.94970574,3686.9,3686.8,0.00763215]
[1753205006935,1e-08,3686.9,3686.8,4.48663215]
[1753205007657,0.42980001,3686.9,3686.8,4.48663215]
[1753205008372,1e-08,3686.9,3686.8,5.03663215]
[1753205008577,1e-08,3686.9,3686.8,7.74901144]
[1753205008751,1e-08,3686.9,3686.8,5.03663215]
[1753205009829,1e-08,3686.9,3686.8,7.74901144]
[1753205010030,1e-08,3686.9,3686.8,5.03663215]
[1753205010540,1e-08,3686.9,3686.8,7.74901144]
[1753205010741,1e-08,3686.9,3686.8,5.03663215]
[1753205011190,1e-08,3686.9,3686.8,7.77613523]
[1753205011478,1e-08,3686.9,3686.8,7.74901144]
[1753205012069,1e-08,3686.9,3686.8,8.79516379]
[1753205012432,1e-08,3687.7,3687.6,3.26179086]
[1753205012632,1e-08,3687.7,3687.6,13.18820876]
[1753205012882,1e-08,3687.7,3687.6,13.59329086]
[1753205013376,0.002,3688.5,3688.3,5.69657619]
[1753205013580,0.002,3688.5,3688.3,10.16157619]
[1753205013794,0.002,3688.5,3688.3,11.09870447]
[1753205014137,0.002,3688.5,3688.3,14.09870447]
[1753205014540,1e-08,3688.5,3688.4,7.88820268]
[1753205014854,1e-08,3688.5,3688.4,8.32040268]
[1753205015750,1e-08,3688.5,3688.4,11.15440268]
[1753205016440,1e-08,3688.5,3688.4,11.78613712]
[1753205016870,1e-08,3688.5,3688.4,11.78113712]
[1753205017195,1e-08,3688.5,3688.4,6.26120268]
[1753205017385,1e-08,3688.5,3688.4,11.14840268]
[1753205017553,0.002,3689.2,3689.1,7.08438824]
[1753205017753,0.002,3689.2,3689.1,11.54438824]
[1753205018279,0.002,3689.2,3689.1,11.55134676]
[1753205018443,0.002,3689.2,3689.1,14.68263852]
[1753205018639,0.002,3689.2,3689.1,9.79043852]
[1753205018843,0.002,3689.2,3689.1,7.09134676]
[1753205019041,0.002,3689.2,3689.1,11.54834676]
[1753205019240,0.002,3689.2,3689.1,11.98054676]
[1753205019888,1e-08,3689.3,3689.2,6.26061476]
[1753205020181,1e-08,3689.3,3689.2,9.39190652]
[1753205020381,0.002,3690.2,3690.1,3.25995365]
[1753205020583,2.70901816,3691.4,3690.2,0.55]
[1753205020744,2.70907268,3691.3,3690.2,0.5770988]
[1753205020975,2.70936573,3691.0,3690.6,0.55]
[1753205021181,0.4298,3690.9,3690.8,0.55]
[1753205021691,0.4298,3690.9,3690.8,0.55695478]
[1753205021892,7.25978126,3690.9,3690.8,0.00695478]
[1753205022415,3.94586627,3690.9,3690.8,0.00695478]
[1753205022801,3.97959309,3690.9,3690.8,0.00695478]
[1753205022975,3.94586627,3690.9,3690.8,0.00695478]
[1753205023181,3.97959309,3690.9,3690.8,0.00695478]
[1753205024022,3.97959309,3690.9,3690.8,1e-08]
[1753205024207,4.94847587,3690.9,3690.8,1e-08]
[1753205024404,4.91474905,3690.9,3690.8,1e-08]
[1753205024808,4.94847587,3690.9,3690.8,1e-08]
[1753205026816,2.71046907,3689.4,3688.3,0.50492828]
[1753205027133,0.4298,3689.7,3688.7,3.26096295]
[1753205027285,2.71074516,3689.1,3688.7,0.55]
[1753205027486,2.71074516,3689.1,3688.6,4.457]
[1753205027487,3.1728776,3689.0,3688.1,5.7113683]
[1753205027694,3.1728776,3689.0,3688.6,0.1352]
[1753205027695,0.4621,3689.0,3688.6,0.1352]
[1753205028025,2.71092846,3688.8,3688.6,0.1352]
[1753205028326,0.4621,3688.7,3688.6,0.1352]
[1753205028685,3.17264879,3689.3,3688.6,0.1352]
[1753205028913,3.17264879,3689.3,3688.8,0.1352]
[1753205029129,0.4621,3689.2,3688.8,0.1352]
[1753205029299,0.4621,3689.1,3688.8,0.1352]
[1753205029497,2.7108352,3688.9,3688.5,0.55]
[1753205029729,0.4621,3688.8,3688.6,0.1352]
[1753205029934,0.03372682,3689.0,3688.6,0.1352]
[1753205030117,3.17314505,3688.7,3688.6,0.1352]
[1753205030288,0.7814,3688.6,3687.5,2.7118644]
[1753205030489,2.71127619,3688.3,3688.2,0.1352]
[1753205030730,2.71142778,3688.1,3687.9,0.1352]
[1753205031131,3.17352778,3688.1,3687.9,0.1352]
[1753205031318,0.5973,3688.5,3687.9,0.1352]
[1753205031648,2.71121115,3688.4,3687.9,0.1352]
[1753205032015,2.7113714,3688.2,3687.9,0.1352]
[1753205032209,2.71149674,3688.0,3687.9,0.1352]
[1753205032409,2.71149674,3688.0,3687.2,2.71207322]
[1753205032410,2.71168512,3687.8,3687.5,4.445]
[1753205032614,0.03372682,3688.0,3687.6,0.1352]
[1753205032916,0.1352,3688.2,3687.6,0.1352]
[1753205032917,0.4621,3687.7,3687.6,0.1352]
[1753205033111,0.4621,3687.7,3687.6,0.6852]
[1753205033311,3.17353334,3688.1,3687.6,0.6852]
[1753205033527,0.4621,3688.0,3687.6,0.6852]
[1753205033765,3.17372395,3687.9,3687.6,0.6852]
[1753205034059,0.4621,3687.8,3687.6,0.6852]
[1753205034752,0.4621,3687.7,3687.6,0.6852]
[1753205036100,3.17354566,3688.1,3687.6,0.6852]
[1753205036248,0.4621,3688.1,3687.6,0.6852]
[1753205036586,2.71149712,3688.0,3687.6,0.6852]
[1753205036768,3.17359712,3688.0,3687.6,0.6852]
[1753205036942,0.4621,3687.9,3687.6,0.6852]
[1753205037142,0.4621,3687.8,3687.6,0.6852]
[1753205037588,3.17381733,3687.7,3687.0,0.55]
[1753205037888,2.71202624,3687.3,3687.0,4.5732]
[1753205038055,0.4621,3687.2,3687.0,4.5732]
[1753205038256,3.17419638,3687.2,3687.0,4.5732]
[1753205038571,3.20798542,3687.1,3687.0,4.5732]
[1753205038784,3.1742586,3687.1,3687.0,4.438]
[1753205039809,2.71230573,3686.9,3686.8,0.001]
[1753205040181,3.17440573,3686.9,3686.8,0.001]
[1753205040473,0.5973,3687.4,3686.9,2.71227865]
[1753205040645,0.5973,3687.4,3686.8,0.001]
[1753205040646,0.1352,3687.4,3686.8,0.001]
[1753205040851,0.1352,3687.4,3687.3,2.71201149]
[1753205041056,0.1352,3687.4,3687.3,0.55]
[1753205041248,0.1352,3687.4,3687.3,3.26201149]
[1753205041693,2.8486414,3688.1,3687.5,2.71185622]
[1753205041883,2.8486414,3688.1,3687.4,0.55]
[1753205041884,0.1372,3688.1,3687.6,4.438]
[1753205042192,0.002,3688.1,3687.7,0.55]
[1753205042367,0.002,3688.1,3687.7,3.39690458]
[1753205042563,0.002,3688.1,3687.7,0.6852]
[1753205042954,0.002,3688.1,3687.7,1.22463717]
[1753205043156,0.002,3688.1,3688.0,3.26149674]
[1753205043455,0.002,3688.1,3688.0,3.39669674]
[1753205044272,0.4641,3688.1,3688.0,5.1232]
[1753205044565,0.4641,3688.1,3688.0,0.1352]
[1753205044770,0.4641,3688.1,3688.0,4.438]
[1753205045100,1.2861,3688.1,3687.8,0.1352]
[1753205045396,0.4621,3688.0,3687.9,4.438]
[1753205045695,0.002,3688.1,3687.9,4.438]
[1753205046418,0.002,3688.1,3688.0,3.26149674]
[1753205046582,0.002,3688.1,3688.0,4.15869674]
[1753205047680,0.002,3688.1,3688.0,1.4472]
[1753205048011,0.002,3688.1,3688.0,8.86869674]
[1753205048711,0.002,3688.1,3688.0,5.3952]
[1753205048918,0.002,3688.1,3688.0,9.8332]
[1753205049277,0.002,3688.1,3688.0,12.54469674]
[1753205049476,0.002,3688.1,3688.0,10.89548544]
[1753205049788,0.002,3688.1,3688.0,9.8332]
[1753205050006,0.4641,3688.1,3688.0,9.8332]
[1753205050398,3.17552322,3688.1,3688.0,9.148]
[1753205050972,0.002,3688.1,3688.0,9.148]
[1753205051396,0.002,3688.1,3688.0,9.698]
[1753205051595,0.002,3688.1,3688.0,9.2832]
[1753205051805,0.4641,3688.1,3688.0,9.2832]
[1753205053510,0.002,3688.1,3688.0,9.2832]
[1753205054518,0.002,3688.1,3688.0,11.99469674]
[1753205054715,0.002,3688.1,3688.0,12.54469674]
[1753205054905,0.002,3688.1,3688.0,14.01532452]
[1753205055724,0.002,3688.1,3688.0,15.27962452]
[1753205055917,0.002,3688.1,3688.0,14.82492452]
[1753205056113,0.002,3688.1,3688.0,13.35429674]
[1753205056802,0.002,3688.1,3688.0,6.2048]
[1753205056998,0.002,3688.1,3688.0,9.8322]
[1753205057205,2.71342322,3688.1,3688.0,4.8452]
[1753205057404,0.4761,3688.1,3688.0,9.2822]
[1753205057632,0.002,3688.1,3688.0,9.2822]
[1753205057840,0.002,3688.1,3688.0,9.8322]
[1753205058047,0.002,3688.1,3688.0,13.79806703]
[1753205058355,0.002,3688.1,3688.0,14.22936703]
[1753205059064,1e-08,3688.1,3688.0,23.24884578]
[1753205059264,1e-08,3688.1,3688.0,26.24884578]
[1753205059740,1e-08,3688.1,3688.0,14.96286703]
[1753205060555,1e-08,3688.1,3688.0,17.81386703]
[1753205060738,0.4741,3689.7,3688.2,0.55]
[1753205061058,2.71046782,3689.4,3689.1,0.6852]
[1753205061267,3.31956911,3689.7,3689.2,4.436]
[1753205061465,0.4741,3689.6,3689.2,4.436]
[1753205061763,0.4741,3689.5,3689.2,4.436]
[1753205061962,2.71032373,3689.6,3689.2,4.436]
[1753205062164,0.4741,3689.4,3689.1,0.6852]
[1753205062384,5.71046782,3689.4,3689.3,4.436]
[1753205062858,6.18456782,3689.4,3689.3,4.436]
[1753205063058,0.7889,3689.3,3688.9,0.1352]
[1753205063279,2.71089213,3688.9,3688.5,0.1352]
[1753205063449,0.4741,3688.8,3688.5,0.1352]
[1753205063650,2.71133019,3688.3,3688.1,0.1352]
[1753205063854,2.71122809,3688.4,3688.2,4.436]
[1753205064070,0.8044,3688.5,3688.2,4.436]
[1753205064482,0.4741,3688.9,3688.2,4.436]
[1753205064756,3.0,3688.9,3688.5,0.55]
[1753205064958,3.0,3688.9,3688.6,4.435]
[1753205065179,0.4741,3688.8,3688.6,4.435]
[1753205065381,0.4741,3688.7,3688.6,4.435]
[1753205066267,3.18510002,3688.7,3688.4,4.435]
[1753205066507,2.71105821,3688.6,3688.4,4.435]
[1753205066710,3.18522918,3688.5,3688.4,4.435]
[1753205067010,0.4741,3688.5,3688.4,4.435]
[1753205067198,3.18522918,3688.5,3688.4,4.435]
[1753205067515,0.4741,3688.5,3688.4,9.145]
[1753205067674,2.71092189,3688.8,3688.4,9.145]
[1753205068372,3.18509143,3688.7,3688.4,9.145]
[1753205068819,2.71108932,3688.6,3688.4,9.145]
[1753205069111,3.18522918,3688.5,3688.4,4.71]
[1753205069612,2.71100615,3688.7,3688.4,4.71]
[1753205070085,2.7110633,3688.6,3688.4,4.71]
[1753205070287,3.1851633,3688.6,3688.4,4.71]
[1753205070617,0.4741,3688.6,3688.4,4.71]
[1753205070983,0.4741,3689.3,3688.7,0.55]
[1753205071204,0.1352,3689.5,3688.9,0.55]
[1753205071406,0.76,3690.0,3689.0,0.02710761]
[1753205071604,2.71046378,3689.5,3689.4,0.1352]
[1753205071805,0.4741,3689.5,3688.7,4.71]
[1753205072007,2.7108352,3688.9,3688.8,4.434]
[1753205072227,3.1849352,3688.9,3688.8,4.434]
[1753205072527,3.1849352,3688.9,3688.7,4.71]
[1753205072528,2.71090869,3688.8,3688.7,4.71]
[1753205072744,2.71090869,3688.8,3688.7,9.144]
[1753205072912,3.18494169,3688.9,3688.7,9.144]
[1753205073231,2.71077546,3689.0,3688.7,9.144]
[1753205074036,2.71084445,3688.9,3688.7,9.144]
[1753205074238,2.71090869,3688.8,3688.7,4.71]
[1753205074420,3.0,3689.2,3688.8,0.55]
[1753205074598,3.18471476,3689.2,3689.0,0.1352]
[1753205074801,2.71068824,3689.1,3689.0,0.1352]
[1753205075004,0.64302682,3689.1,3689.0,4.433]
[1753205075217,3.31998824,3689.1,3689.0,4.433]
[1753205075537,3.35373075,3689.1,3689.0,4.433]
[1753205075941,1.32546018,3689.1,3688.5,0.1352]
[1753205076101,2.71104903,3688.7,3688.6,4.433]
[1753205076309,2.71118582,3688.5,3688.3,0.1352]
[1753205076509,2.71118582,3688.5,3688.4,4.433]
[1753205076740,3.18528582,3688.5,3688.4,4.433]
[1753205076920,0.4741,3688.5,3688.4,4.433]
[1753205077529,3.18522918,3688.5,3688.4,4.433]
[1753205077752,2.71108294,3688.6,3688.4,4.433]
[1753205078452,2.71106981,3688.6,3688.4,4.433]
[1753205078658,0.50782682,3688.5,3688.0,4.71]
[1753205078952,0.1352,3688.5,3688.1,4.433]
[1753205079314,2.84635038,3688.5,3688.1,4.433]
[1753205079766,0.6093,3688.5,3688.1,4.433]
[1753205080065,0.1352,3688.8,3688.3,0.55]
[1753205080264,0.8952,3689.3,3688.7,0.6852]
[1753205080559,3.0,3689.2,3688.8,4.432]
[1753205080939,0.1352,3689.3,3688.9,0.55]
[1753205081264,0.1352,3689.5,3688.9,0.6852]
[1753205081469,1.2308,3690.1,3689.2,0.55]
[1753205081762,0.1352,3689.8,3689.3,4.432]
[1753205082061,3.18439891,3689.7,3689.3,4.432]
[1753205082270,3.4741,3689.7,3689.3,4.432]
[1753205082872,0.1352,3690.0,3689.4,5.1172]
[1753205083027,3.0,3689.9,3689.4,7.82766302]
[1753205083363,3.0,3689.9,3689.4,5.1172]
[1753205083721,3.1352,3690.0,3689.4,7.82765583]
[1753205083966,0.1352,3690.0,3689.4,5.1172]
[1753205084160,0.002,3690.2,3689.8,0.6852]
[1753205084361,0.002,3690.2,3689.9,4.432]
[1753205084736,0.002,3690.2,3689.8,0.1352]
[1753205084953,0.4741,3690.1,3689.9,4.431]
[1753205085151,3.18406409,3690.1,3689.9,4.431]
[1753205085566,3.18406409,3690.1,3689.8,0.1352]
[1753205085884,2.7100271,3690.0,3689.9,4.431]
[1753205086088,2.71010054,3689.9,3689.8,0.1352]
[1753205086233,1.3967,3689.9,3689.8,4.431]
[1753205086547,5.84530957,3689.9,3689.8,4.431]
[1753205087086,0.1352,3689.9,3689.8,4.431]
[1753205087380,2.71003912,3690.0,3689.8,4.431]
[1753205087674,3.0,3690.1,3689.8,4.431]
[1753205088163,3.0,3690.1,3689.8,4.5662]
[1753205088344,0.002,3690.2,3689.8,4.5662]
[1753205088882,2.71010054,3689.9,3689.8,4.5662]
[1753205089088,3.17210054,3689.9,3689.8,4.43]
[1753205089538,2.71017399,3689.8,3689.5,0.1352]
[1753205089749,2.7103209,3689.6,3689.5,4.43]
[1753205090070,2.71049957,3689.4,3689.2,0.1352]
[1753205090246,2.71049957,3689.4,3689.3,4.43]
[1753205090643,2.71054129,3689.3,3689.2,0.1352]
[1753205090976,0.462,3689.3,3689.0,4.71]
[1753205091140,0.03372682,3689.4,3689.2,4.429]
[1753205091326,0.1352,3689.5,3689.2,4.429]
[1753205091529,0.1352,3689.5,3689.0,4.71]
[1753205091530,2.71052914,3689.4,3689.3,4.429]
[1753205091960,2.84561103,3689.5,3689.3,4.429]
[1753205092159,2.71046782,3689.4,3689.3,4.429]
[1753205093431,0.1352,3689.5,3689.3,4.429]
[1753205093633,0.03372682,3689.8,3689.3,4.429]
[1753205093947,0.03372682,3689.8,3689.2,0.1352]
[1753205093948,2.71054129,3689.3,3689.2,0.1352]
[1753205094135,3.17254129,3689.3,3689.2,4.429]
[1753205095147,2.84566227,3689.5,3689.2,4.429]
[1753205095348,2.71051681,3689.4,3689.2,4.429]
[1753205095667,2.71054196,3689.3,3688.9,4.8452]
[1753205095870,2.71054196,3689.3,3689.0,4.428]
[1753205096176,0.462,3689.4,3689.0,4.428]
[1753205096177,3.17248901,3689.4,3689.0,4.428]
[1753205096424,0.1352,3689.5,3689.0,4.428]
[1753205096580,2.84560127,3689.5,3689.0,4.428]
[1753205096780,0.1352,3689.5,3689.0,7.13875698]
[1753205097023,0.1352,3689.5,3689.1,0.55]
[1753205097233,3.0,3689.9,3689.1,0.55]
[1753205097529,0.1352,3689.8,3689.2,0.1352]
[1753205097692,0.1352,3689.8,3689.3,7.13753913]
[1753205098015,2.7118866,3690.2,3689.4,1.3377]
[1753205098199,0.1352,3690.1,3689.5,4.71]
[1753205098400,0.1352,3690.1,3689.6,4.427]
[1753205098605,2.7101045,3689.9,3689.6,4.427]
[1753205098993,0.60530052,3689.9,3689.5,4.71]
[1753205099325,2.71024744,3689.7,3689.6,4.427]
[1753205099487,0.1352,3690.1,3689.6,4.427]
[1753205100027,0.002,3690.2,3689.8,0.55]
[1753205100177,0.002,3690.2,3689.9,0.1352]
[1753205100376,0.002,3690.2,3690.0,4.426]
[1753205100696,2.7100271,3690.0,3689.9,4.426]
[1753205100892,2.7103209,3689.6,3689.5,0.1352]
[1753205101091,2.71044677,3689.5,3689.0,0.1352]
[1753205101333,0.7517,3689.2,3688.1,0.7877]
[1753205101521,2.7113497,3688.2,3688.1,0.1352]
[1753205101824,2.84653524,3688.3,3688.1,4.426]
[1753205101983,0.5972,3688.3,3687.7,0.1352]
[1753205102184,2.7113497,3688.2,3688.1,4.426]
[1753205102630,2.71142322,3688.1,3687.3,0.001]
[1753205102932,3.462,3688.1,3687.3,0.001]
[1753205103133,5.71193795,3687.4,3687.3,0.001]
[1753205103337,6.53753795,3687.4,3687.3,0.001]
[1753205103519,6.53753795,3687.4,3686.8,0.001]
[1753205103520,5.71230573,3686.9,3686.8,0.001]
[1753205103695,6.2835363,3686.9,3686.8,0.001]
[1753205103894,6.2835363,3686.9,3686.0,0.1362]
[1753205103895,2.71289438,3686.1,3686.0,0.001]
[1753205104123,5.71289438,3686.1,3686.0,0.001]
[1753205104294,11.40569438,3686.1,3686.0,1e-08]
[1753205104496,25.90569438,3686.1,3686.0,1e-08]
[1753205104735,26.33008677,3686.1,3686.0,1e-08]
[1753205104940,3.50730967,3685.4,3684.9,0.001]
[1753205105235,10.96603649,3685.4,3684.9,0.001]
[1753205105395,11.39430967,3685.4,3684.9,0.001]
[1753205105736,0.8027,3685.9,3684.9,0.001]
[1753205105938,3.8027,3685.9,3684.9,0.001]
[1753205106234,0.8027,3685.9,3685.0,0.55]
[1753205106395,2.71311519,3685.8,3684.9,0.02813777]
[1753205106738,3.0,3685.6,3684.9,0.001]
[1753205106891,3.0,3685.6,3684.9,2.71471625]
[1753205107292,3.0,3685.6,3684.9,0.001]
[1753205107641,3.0,3686.1,3685.2,0.55]
[1753205107844,3.0,3686.1,3685.3,2.71444398]
[1753205108139,2.71282079,3686.2,3685.3,2.71444398]
[1753205108140,14.5,3686.2,3685.8,2.71309685]
[1753205108340,0.462,3686.6,3685.6,3.50699027]
[1753205108549,3.10553165,3686.5,3685.7,2.7131249]
[1753205108727,3.10553165,3686.5,3685.6,0.7938]
[1753205108728,3.0,3686.4,3685.8,7.13910549]
[1753205109042,0.39292781,3686.5,3685.8,7.13910549]
[1753205109043,0.39292781,3686.5,3685.9,2.71304159]
[1753205109362,0.462,3687.0,3686.0,0.001]
[1753205109511,0.462,3687.0,3686.5,2.71259746]
[1753205109920,14.5,3687.2,3686.4,4.427]
[1753205110104,0.7548,3687.3,3686.4,7.13967155]
[1753205110308,3.46684653,3687.3,3686.5,2.71260002]
[1753205110640,0.462,3687.2,3686.5,4.427]
[1753205110843,3.17410311,3687.2,3686.5,4.427]
[1753205111050,0.78852682,3687.3,3686.5,4.427]
[1753205111051,0.7548,3687.3,3686.5,4.427]
[1753205111245,0.462,3687.6,3686.9,2.71229245]
[1753205111410,1.69495322,3687.8,3686.6,4.04412071]
[1753205111411,0.7545,3687.8,3686.8,0.4493]
[1753205111610,0.7545,3687.8,3687.0,2.71223216]
[1753205111812,14.5,3688.1,3687.4,2.71192111]
[1753205112038,14.5,3688.1,3687.2,3.28919614]
[1753205112343,3.0,3688.0,3687.2,0.55]
[1753205112543,3.462,3688.2,3687.2,3.26207128]
[1753205112706,2.71149247,3688.1,3687.2,0.57712085]
[1753205113018,3.17337098,3688.2,3687.5,2.71184856]
[1753205113223,3.84418501,3688.2,3687.4,2.71191852]
[1753205113421,0.8235,3688.3,3687.3,0.55]
[1753205113654,3.8235,3688.3,3687.7,2.71170344]
[1753205113950,0.03372682,3688.8,3687.5,0.16231864]
[1753205113951,0.1352,3688.2,3687.5,0.16231864]
[1753205114149,0.1352,3688.2,3687.1,1.2255]
[1753205114150,0.1352,3687.9,3687.6,4.426]
[1753205114646,5.7113255,3688.3,3687.6,7.13778435]
[1753205114851,0.1352,3688.2,3687.6,4.426]
[1753205115051,0.8119,3688.8,3687.7,0.55]
[1753205115255,0.8119,3688.8,3687.6,4.426]
[1753205115256,3.1352,3688.6,3687.9,0.6852]
[1753205115554,0.1352,3688.6,3687.9,3.39675989]
[1753205115856,2.744856,3688.5,3688.0,4.425]
[1753205116044,2.71132881,3688.3,3688.0,4.425]
[1753205116245,2.71129056,3688.3,3688.0,4.425]
[1753205116555,2.84645778,3688.4,3688.0,4.425]
[1753205116718,0.1352,3688.4,3688.1,4.425]
[1753205117630,2.71139396,3688.2,3687.9,0.55]
[1753205117834,2.71139396,3688.2,3688.0,4.425]
[1753205118235,0.1352,3688.4,3687.9,0.55]
[1753205118554,2.71149477,3688.1,3688.0,4.424]
[1753205118721,2.71137393,3688.2,3688.0,4.424]
[1753205119125,3.29342861,3688.4,3688.0,4.424]
[1753205119325,2.7112814,3688.3,3688.0,4.424]
[1753205119634,1.26162682,3688.2,3687.0,0.4709]
[1753205119834,1.2279,3688.2,3687.2,0.02712085]
[1753205120075,2.71150384,3688.0,3687.5,0.1352]
[1753205120615,0.1352,3688.1,3687.5,0.1352]
[1753205120969,11.35937767,3689.5,3688.2,2.71129201]
[1753205120970,2.71082875,3689.0,3688.2,2.71129201]
[1753205121117,0.1352,3688.8,3688.3,4.423]
[1753205121320,0.7894,3689.3,3688.5,0.55]
[1753205121553,2.71076172,3689.0,3688.5,0.6852]
[1753205121752,2.71096188,3688.8,3688.6,4.423]
[1753205121953,2.7109571,3688.8,3688.7,4.423]
[1753205122156,0.1352,3688.9,3688.7,4.423]
[1753205122334,0.1352,3689.2,3688.7,4.423]
[1753205122539,2.71077692,3689.0,3688.7,4.423]
[1753205122745,0.1352,3689.2,3688.7,4.423]
[1753205123177,2.71070296,3689.1,3688.7,4.423]
[1753205123357,2.84582135,3689.2,3688.7,4.423]
[1753205123674,2.7109023,3688.9,3688.7,4.423]
[1753205123882,2.71090869,3688.8,3688.7,4.423]
[1753205124035,0.48072682,3689.1,3688.0,0.8113]
[1753205124371,2.7113245,3688.3,3688.1,4.422]
[1753205124934,2.7113245,3688.3,3688.0,0.8113]
[1753205124935,2.71142322,3688.1,3688.0,0.8113]
[1753205125175,2.71128273,3688.3,3688.0,5.2333]
[1753205125379,0.1352,3688.6,3688.0,5.2333]
[1753205125528,2.71102479,3688.7,3688.1,0.4709]
[1753205125728,2.71092057,3688.8,3688.5,0.1352]
[1753205125966,2.71098218,3688.7,3688.6,4.422]
[1753205126379,2.71105568,3688.6,3688.5,0.1352]
[1753205126609,2.71105568,3688.6,3688.5,4.5572]
[1753205126771,2.71105568,3688.6,3688.5,0.1352]
[1753205126964,0.1352,3688.8,3688.4,4.421]
[1753205127164,3.0,3688.7,3688.4,4.421]
[1753205127401,2.71099462,3688.7,3688.4,4.421]